[Event "Titled Tuesday Blitz January 17 Early 2023"]
[White "Sihite, Chelsie Monica Ignesias"]
[Black "Starozhilov, Leonid"]
[WhiteFideId "7101198"]
[BlackFideId "14106752"]
[WhiteElo "2266"]
[BlackElo "2313"]
[Result "0-1"]
[Round "11"]
[TimeControl "180+2"]
[Date "2023.01.17"]
[WhiteClock "0:00:28"]
[BlackClock "0:00:13"]

1. e4 {[%clk 0:02:49]}  Nc6 {[%clk 0:02:58]} 2. Nc3 {[%clk 0:02:47]}  d6 {[%clk 0:02:59]} 3. Nf3 {[%clk 0:02:47]}  Nf6 {[%clk 0:02:59]} 4. h3 {[%clk 0:02:47]}  e5 {[%clk 0:02:54]} 5. d4 {[%clk 0:02:47]}  exd4 {[%clk 0:02:54]} 6. Nxd4 {[%clk 0:02:48]}  g6 {[%clk 0:02:54]} 7. Bb5 {[%clk 0:02:43]}  Bd7 {[%clk 0:02:54]} 8. O-O {[%clk 0:02:40]}  Bg7 {[%clk 0:02:54]} 9. Be3 {[%clk 0:02:38]}  O-O {[%clk 0:02:53]} 10. Nxc6 {[%clk 0:02:35]}  bxc6 {[%clk 0:02:40]} 11. Bd3 {[%clk 0:02:34]}  Rb8 {[%clk 0:02:30]} 12. Rb1 {[%clk 0:02:29]}  c5 {[%clk 0:02:30]} 13. a3 {[%clk 0:02:25]}  Bc6 {[%clk 0:02:30]} 14. Qd2 {[%clk 0:02:23]}  Re8 {[%clk 0:02:27]} 15. f3 {[%clk 0:02:16]}  a5 {[%clk 0:02:16]} 16. Bc4 {[%clk 0:02:13]}  Nh5 {[%clk 0:02:00]} 17. Nd5 {[%clk 0:01:55]}  Bxd5 {[%clk 0:01:33]} 18. Qxd5 {[%clk 0:01:50]}  Qd7 {[%clk 0:01:26]} 19. c3 {[%clk 0:01:41]}  c6 {[%clk 0:01:12]} 20. Qd2 {[%clk 0:01:35]}  d5 {[%clk 0:01:09]} 21. Bxc5 {[%clk 0:01:28]}  Qc7 {[%clk 0:00:56]} 22. exd5 {[%clk 0:00:59]}  cxd5 {[%clk 0:00:54]} 23. Qxd5 {[%clk 0:00:57]}  Rbd8 {[%clk 0:00:42]} 24. Qg5 {[%clk 0:00:27]}  Re5 {[%clk 0:00:23]} 25. Qh4 {[%clk 0:00:27]}  Qxc5+ {[%clk 0:00:22]} 26. Kh1 {[%clk 0:00:26]}  Bf6 {[%clk 0:00:21]} 27. Qg4 {[%clk 0:00:22]}  Rg5 {[%clk 0:00:20]} 28. Qe4 {[%clk 0:00:22]}  Ng3+ {[%clk 0:00:19]} 29. Kh2 {[%clk 0:00:22]}  Nxe4 {[%clk 0:00:19]} 30. fxe4 {[%clk 0:00:20]}  Qxc4 {[%clk 0:00:20]} 31. Rxf6 {[%clk 0:00:20]}  Rxg2+ {[%clk 0:00:18]} 32. Kxg2 {[%clk 0:00:20]}  Qxe4+ {[%clk 0:00:18]} 33. Kg3 {[%clk 0:00:20]}  Qxb1 {[%clk 0:00:18]} 34. Rf2 {[%clk 0:00:21]}  Rd3+ {[%clk 0:00:18]} 35. Kg2 {[%clk 0:00:22]}  Qd1 {[%clk 0:00:17]} 36. c4 {[%clk 0:00:22]}  Rd2 {[%clk 0:00:18]} 37. c5 {[%clk 0:00:22]}  Rxf2+ {[%clk 0:00:18]} 38. Kxf2 {[%clk 0:00:23]}  Qc2+ {[%clk 0:00:19]} 39. Ke3 {[%clk 0:00:24]}  Qxc5+ {[%clk 0:00:19]} 40. Kd3 {[%clk 0:00:24]}  a4 {[%clk 0:00:20]} 41. Kd2 {[%clk 0:00:25]}  Qc4 {[%clk 0:00:20]} 42. Kd1 {[%clk 0:00:25]}  Qb3+ {[%clk 0:00:21]} 43. Kc1 {[%clk 0:00:26]}  g5 {[%clk 0:00:22]} 44. Kb1 {[%clk 0:00:26]}  h5 {[%clk 0:00:22]} 45. Ka1 {[%clk 0:00:27]}  g4 {[%clk 0:00:23]} 46. hxg4 {[%clk 0:00:27]}  h4 {[%clk 0:00:24]} 47. Kb1 {[%clk 0:00:27]}  h3 {[%clk 0:00:24]} 48. Kc1 {[%clk 0:00:28]}  h2 {[%clk 0:00:25]} 49. Kd2 {[%clk 0:00:29]}  h1=Q {[%clk 0:00:26]} 50. g5 {[%clk 0:00:29]}  Qg2+ {[%clk 0:00:26]} 51. Ke1 {[%clk 0:00:28]}  Qe3+ {[%clk 0:00:13]} 52. Kd1 {[%clk 0:00:28]}  Qeg1# {[%clk 0:00:13]} 0-1


[Site "https://www.chess.com"]

[Event "Titled Tuesday Blitz January 17 Early 2023"]
[White "Agasarov, Benik"]
[Black "Mamedov, Edgar"]
[WhiteFideId "13314823"]
[BlackFideId "13739980"]
[WhiteElo "2235"]
[BlackElo "2193"]
[Result "1-0"]
[Round "11"]
[TimeControl "180+2"]
[Date "2023.01.17"]
[WhiteClock "0:00:15"]
[BlackClock "0:00:01"]

1. d4 {[%clk 0:03:00]}  d5 {[%clk 0:02:57]} 2. c4 {[%clk 0:02:58]}  c6 {[%clk 0:02:53]} 3. Nf3 {[%clk 0:02:56]}  Nf6 {[%clk 0:02:53]} 4. e3 {[%clk 0:02:55]}  e6 {[%clk 0:02:53]} 5. Nc3 {[%clk 0:02:54]}  Nbd7 {[%clk 0:02:53]} 6. Bd3 {[%clk 0:02:55]}  Bd6 {[%clk 0:02:53]} 7. O-O {[%clk 0:02:53]}  O-O {[%clk 0:02:46]} 8. e4 {[%clk 0:02:52]}  dxc4 {[%clk 0:02:45]} 9. Bxc4 {[%clk 0:02:51]}  e5 {[%clk 0:02:43]} 10. Bg5 {[%clk 0:02:21]}  Qe7 {[%clk 0:02:32]} 11. d5 {[%clk 0:01:56]}  Nb6 {[%clk 0:02:19]} 12. Bb3 {[%clk 0:01:57]}  Bg4 {[%clk 0:02:05]} 13. h3 {[%clk 0:01:56]}  Bh5 {[%clk 0:02:03]} 14. a4 {[%clk 0:01:56]}  cxd5 {[%clk 0:01:59]} 15. Bxd5 {[%clk 0:01:29]}  h6 {[%clk 0:01:49]} 16. Bh4 {[%clk 0:01:27]}  g5 {[%clk 0:01:48]} 17. Bg3 {[%clk 0:01:27]}  Rad8 {[%clk 0:01:46]} 18. a5 {[%clk 0:01:14]}  Nbxd5 {[%clk 0:01:44]} 19. Nxd5 {[%clk 0:01:15]}  Nxd5 {[%clk 0:01:43]} 20. Qxd5 {[%clk 0:01:16]}  Bxf3 {[%clk 0:01:33]} 21. gxf3 {[%clk 0:01:17]}  Bc5 {[%clk 0:01:17]} 22. Qxe5 {[%clk 0:01:15]}  Qxe5 {[%clk 0:01:17]} 23. Bxe5 {[%clk 0:01:16]}  f5 {[%clk 0:01:17]} 24. Rac1 {[%clk 0:01:13]}  b6 {[%clk 0:01:17]} 25. axb6 {[%clk 0:01:13]}  axb6 {[%clk 0:01:17]} 26. b4 {[%clk 0:01:09]}  Bxb4 {[%clk 0:01:15]} 27. Rc6 {[%clk 0:01:09]}  Rde8 {[%clk 0:01:09]} 28. Rg6+ {[%clk 0:01:07]}  Kf7 {[%clk 0:01:02]} 29. Rf6+ {[%clk 0:01:06]}  Kg8 {[%clk 0:00:58]} 30. Rg6+ {[%clk 0:00:49]}  Kf7 {[%clk 0:00:48]} 31. Rg7+ {[%clk 0:00:50]}  Ke6 {[%clk 0:00:47]} 32. Bd4 {[%clk 0:00:48]}  Bc5 {[%clk 0:00:44]} 33. Bxc5 {[%clk 0:00:46]}  bxc5 {[%clk 0:00:43]} 34. Rc1 {[%clk 0:00:46]}  fxe4 {[%clk 0:00:42]} 35. fxe4 {[%clk 0:00:46]}  Kf6 {[%clk 0:00:41]} 36. Rh7 {[%clk 0:00:43]}  Kg6 {[%clk 0:00:41]} 37. Rb7 {[%clk 0:00:41]}  Rxe4 {[%clk 0:00:40]} 38. Rb6+ {[%clk 0:00:40]}  Rf6 {[%clk 0:00:28]} 39. Rxf6+ {[%clk 0:00:39]}  Kxf6 {[%clk 0:00:28]} 40. Rxc5 {[%clk 0:00:40]}  Rf4 {[%clk 0:00:27]} 41. Kg2 {[%clk 0:00:40]}  Rf5 {[%clk 0:00:26]} 42. Rc6+ {[%clk 0:00:40]}  Kg7 {[%clk 0:00:26]} 43. Kg3 {[%clk 0:00:41]}  h5 {[%clk 0:00:26]} 44. Rc7+ {[%clk 0:00:37]}  Kg6 {[%clk 0:00:24]} 45. Rc6+ {[%clk 0:00:35]}  Rf6 {[%clk 0:00:24]} 46. Rc8 {[%clk 0:00:28]}  Rf4 {[%clk 0:00:21]} 47. Rg8+ {[%clk 0:00:27]}  Kh6 {[%clk 0:00:21]} 48. f3 {[%clk 0:00:22]}  Ra4 {[%clk 0:00:20]} 49. Rh8+ {[%clk 0:00:19]}  Kg6 {[%clk 0:00:20]} 50. Rg8+ {[%clk 0:00:20]}  Kh6 {[%clk 0:00:20]} 51. Rb8 {[%clk 0:00:20]}  Ra2 {[%clk 0:00:19]} 52. Rb7 {[%clk 0:00:16]}  h4+ {[%clk 0:00:17]} 53. Kg4 {[%clk 0:00:16]}  Ra4+ {[%clk 0:00:17]} 54. Kf5 {[%clk 0:00:16]}  Rf4+ {[%clk 0:00:17]} 55. Ke5 {[%clk 0:00:16]}  Rxf3 {[%clk 0:00:17]} 56. Rb8 {[%clk 0:00:15]}  Rxh3 {[%clk 0:00:16]} 57. Kf5 {[%clk 0:00:12]}  Rf3+ {[%clk 0:00:16]} 58. Kg4 {[%clk 0:00:13]}  Rf4+ {[%clk 0:00:15]} 59. Kh3 {[%clk 0:00:13]}  Rf6 {[%clk 0:00:11]} 60. Kg4 {[%clk 0:00:12]}  Rg6 {[%clk 0:00:09]} 61. Rh8+ {[%clk 0:00:11]}  Kg7 {[%clk 0:00:09]} 62. Ra8 {[%clk 0:00:12]}  Kf6 {[%clk 0:00:06]} 63. Ra6+ {[%clk 0:00:12]}  Kf7 {[%clk 0:00:06]} 64. Ra7+ {[%clk 0:00:13]}  Ke8 {[%clk 0:00:07]} 65. Ra8+ {[%clk 0:00:12]}  Kd7 {[%clk 0:00:07]} 66. Kf5 {[%clk 0:00:11]}  Rh6 {[%clk 0:00:02]} 67. Ra7+ {[%clk 0:00:12]}  Kc8 {[%clk 0:00:02]} 68. Kxg5 {[%clk 0:00:13]}  Rc6 {[%clk 0:00:01]} 69. Ra8+ {[%clk 0:00:14]}  Kb7 {[%clk 0:00:01]} 70. Ra3 {[%clk 0:00:15]} 1-0


[Site "https://www.chess.com"]

[Event "Titled Tuesday Blitz January 17 Early 2023"]
[White "Papasimakopoulos, Alexandros"]
[Black "Batsiashvili, Nino"]
[WhiteFideId "4244125"]
[BlackFideId "13602993"]
[WhiteElo "2401"]
[BlackElo "2467"]
[Result "1-0"]
[Round "11"]
[TimeControl "180+2"]
[Date "2023.01.17"]
[WhiteClock "0:01:09"]
[BlackClock "0:00:11"]

1. Nf3 {[%clk 0:03:00]}  Nf6 {[%clk 0:02:59]} 2. b3 {[%clk 0:02:59]}  d5 {[%clk 0:02:55]} 3. Bb2 {[%clk 0:02:59]}  c5 {[%clk 0:02:55]} 4. e3 {[%clk 0:02:59]}  Nc6 {[%clk 0:02:55]} 5. d4 {[%clk 0:03:00]}  e6 {[%clk 0:02:54]} 6. Nbd2 {[%clk 0:03:00]}  Be7 {[%clk 0:02:54]} 7. a3 {[%clk 0:03:00]}  O-O {[%clk 0:02:54]} 8. Bd3 {[%clk 0:02:55]}  b6 {[%clk 0:02:53]} 9. O-O {[%clk 0:02:54]}  Bb7 {[%clk 0:02:53]} 10. Qe2 {[%clk 0:02:53]}  Rc8 {[%clk 0:02:52]} 11. Rac1 {[%clk 0:02:53]}  a5 {[%clk 0:02:46]} 12. c4 {[%clk 0:02:52]}  Re8 {[%clk 0:02:41]} 13. Rfd1 {[%clk 0:02:50]}  cxd4 {[%clk 0:02:37]} 14. exd4 {[%clk 0:02:49]}  Bf8 {[%clk 0:02:37]} 15. Nf1 {[%clk 0:02:36]}  g6 {[%clk 0:02:34]} 16. Ng3 {[%clk 0:02:34]}  Bg7 {[%clk 0:02:34]} 17. c5 {[%clk 0:02:35]}  bxc5 {[%clk 0:02:31]} 18. Rxc5 {[%clk 0:02:32]}  Ne7 {[%clk 0:02:26]} 19. Rdc1 {[%clk 0:02:30]}  Rxc5 {[%clk 0:02:24]} 20. dxc5 {[%clk 0:02:31]}  Bc6 {[%clk 0:02:11]} 21. b4 {[%clk 0:02:31]}  axb4 {[%clk 0:02:06]} 22. axb4 {[%clk 0:02:30]}  Nf5 {[%clk 0:01:38]} 23. Nxf5 {[%clk 0:02:28]}  exf5 {[%clk 0:01:38]} 24. Qf1 {[%clk 0:02:20]}  d4 {[%clk 0:01:12]} 25. Nxd4 {[%clk 0:02:16]}  Bxg2 {[%clk 0:01:06]} 26. Qxg2 {[%clk 0:01:53]}  Ng4 {[%clk 0:01:01]} 27. c6 {[%clk 0:01:36]}  Bxd4 {[%clk 0:00:56]} 28. Bxd4 {[%clk 0:01:25]}  Qxd4 {[%clk 0:00:54]} 29. c7 {[%clk 0:01:24]}  Qxd3 {[%clk 0:00:38]} 30. c8=Q {[%clk 0:01:22]}  Rxc8 {[%clk 0:00:38]} 31. Rxc8+ {[%clk 0:01:23]}  Kg7 {[%clk 0:00:39]} 32. h3 {[%clk 0:01:13]}  Qb1+ {[%clk 0:00:36]} 33. Qf1 {[%clk 0:01:12]}  Qxb4 {[%clk 0:00:18]} 34. hxg4 {[%clk 0:01:12]}  Qxg4+ {[%clk 0:00:19]} 35. Qg2 {[%clk 0:01:12]}  Qd1+ {[%clk 0:00:18]} 36. Kh2 {[%clk 0:01:12]}  Qh5+ {[%clk 0:00:14]} 37. Qh3 {[%clk 0:01:11]}  Qe2 {[%clk 0:00:14]} 38. Qc3+ {[%clk 0:01:09]}  Kh6 {[%clk 0:00:11]} 39. Qe3+ {[%clk 0:01:08]}  Qxe3 {[%clk 0:00:11]} 40. fxe3 {[%clk 0:01:09]} 1-0


[Site "https://www.chess.com"]

[Event "Titled Tuesday Blitz January 17 Early 2023"]
[White "Arabidze, Meri"]
[Black "Sargissyan, Sargis"]
[WhiteFideId "13604040"]
[BlackFideId "13303210"]
[WhiteElo "2441"]
[BlackElo "2234"]
[Result "0-1"]
[Round "11"]
[TimeControl "180+2"]
[Date "2023.01.17"]
[WhiteClock "0:01:11"]
[BlackClock "0:00:20"]

1. b3 {[%clk 0:03:00]}  Nf6 {[%clk 0:02:58]} 2. Bb2 {[%clk 0:03:01]}  c5 {[%clk 0:02:59]} 3. Nf3 {[%clk 0:03:01]}  Nc6 {[%clk 0:02:59]} 4. g3 {[%clk 0:03:02]}  d6 {[%clk 0:03:00]} 5. Bg2 {[%clk 0:03:02]}  e5 {[%clk 0:03:00]} 6. O-O {[%clk 0:03:02]}  g6 {[%clk 0:03:01]} 7. c4 {[%clk 0:03:02]}  Bg7 {[%clk 0:03:01]} 8. e3 {[%clk 0:03:03]}  O-O {[%clk 0:02:59]} 9. d4 {[%clk 0:03:03]}  exd4 {[%clk 0:02:57]} 10. exd4 {[%clk 0:03:03]}  Bg4 {[%clk 0:02:58]} 11. d5 {[%clk 0:03:01]}  Nd4 {[%clk 0:02:50]} 12. Bxd4 {[%clk 0:03:00]}  cxd4 {[%clk 0:02:50]} 13. Nbd2 {[%clk 0:02:57]}  Qa5 {[%clk 0:02:24]} 14. h3 {[%clk 0:02:52]}  Bxf3 {[%clk 0:02:17]} 15. Nxf3 {[%clk 0:02:53]}  Nd7 {[%clk 0:02:16]} 16. Nxd4 {[%clk 0:02:46]}  Qb6 {[%clk 0:01:57]} 17. Nb5 {[%clk 0:02:40]}  a6 {[%clk 0:01:52]} 18. Na3 {[%clk 0:02:36]}  Bxa1 {[%clk 0:01:46]} 19. Qxa1 {[%clk 0:02:36]}  Rfe8 {[%clk 0:01:47]} 20. Nc2 {[%clk 0:02:30]}  Qa5 {[%clk 0:01:39]} 21. Ne3 {[%clk 0:02:26]}  Ne5 {[%clk 0:01:11]} 22. Kh2 {[%clk 0:02:26]}  Qd2 {[%clk 0:01:11]} 23. Kg1 {[%clk 0:02:12]}  h5 {[%clk 0:01:10]} 24. Rd1 {[%clk 0:02:08]}  Qe2 {[%clk 0:01:09]} 25. Qd4 {[%clk 0:01:56]}  Nf3+ {[%clk 0:01:04]} 26. Bxf3 {[%clk 0:01:56]}  Qxf3 {[%clk 0:01:04]} 27. h4 {[%clk 0:01:39]}  Re4 {[%clk 0:00:58]} 28. Qd3 {[%clk 0:01:38]}  Rxe3 {[%clk 0:00:33]} 29. fxe3 {[%clk 0:01:37]}  Qxg3+ {[%clk 0:00:31]} 30. Kf1 {[%clk 0:01:37]}  Re8 {[%clk 0:00:23]} 31. e4 {[%clk 0:01:27]}  Qf4+ {[%clk 0:00:22]} 32. Kg2 {[%clk 0:01:26]}  Rxe4 {[%clk 0:00:22]} 33. Qf3 {[%clk 0:01:16]}  Qxh4 {[%clk 0:00:20]} 34. Rf1 {[%clk 0:01:11]}  Rg4+ {[%clk 0:00:20]} 0-1


[Site "https://www.chess.com"]

[Event "Titled Tuesday Blitz January 17 Early 2023"]
[White "Volkov, Maksim"]
[Black "Bychkov, Vladimir"]
[WhiteFideId "54123070"]
[BlackFideId "24151513"]
[WhiteElo "2258"]
[BlackElo "2225"]
[Result "1-0"]
[Round "11"]
[TimeControl "180+2"]
[Date "2023.01.17"]
[WhiteClock "0:00:15"]
[BlackClock "0:00:28"]

1. d4 {[%clk 0:03:00]}  Nf6 {[%clk 0:02:58]} 2. c4 {[%clk 0:03:01]}  e6 {[%clk 0:02:55]} 3. g3 {[%clk 0:03:01]}  Bb4+ {[%clk 0:02:55]} 4. Bd2 {[%clk 0:03:00]}  Qe7 {[%clk 0:02:54]} 5. Bg2 {[%clk 0:02:59]}  d5 {[%clk 0:02:53]} 6. Nf3 {[%clk 0:02:47]}  O-O {[%clk 0:02:49]} 7. O-O {[%clk 0:02:46]}  a5 {[%clk 0:02:48]} 8. Qc2 {[%clk 0:02:43]}  c6 {[%clk 0:02:44]} 9. Bf4 {[%clk 0:02:41]}  Bd6 {[%clk 0:02:41]} 10. Bxd6 {[%clk 0:02:36]}  Qxd6 {[%clk 0:02:42]} 11. Nbd2 {[%clk 0:02:35]}  b5 {[%clk 0:02:40]} 12. e4 {[%clk 0:02:20]}  Qd8 {[%clk 0:02:30]} 13. exd5 {[%clk 0:02:02]}  exd5 {[%clk 0:02:29]} 14. cxb5 {[%clk 0:02:01]}  cxb5 {[%clk 0:02:29]} 15. Ne5 {[%clk 0:02:01]}  Ra6 {[%clk 0:02:24]} 16. Nb3 {[%clk 0:01:54]}  Be6 {[%clk 0:02:11]} 17. Nc5 {[%clk 0:01:54]}  Rb6 {[%clk 0:02:09]} 18. Rae1 {[%clk 0:01:17]}  Na6 {[%clk 0:02:01]} 19. Ncd3 {[%clk 0:01:10]}  Bf5 {[%clk 0:01:58]} 20. Qd2 {[%clk 0:01:08]}  Rd6 {[%clk 0:01:47]} 21. Nc5 {[%clk 0:01:04]}  h6 {[%clk 0:01:41]} 22. Nb7 {[%clk 0:01:00]}  Qb8 {[%clk 0:01:41]} 23. Nxd6 {[%clk 0:00:59]}  Qxd6 {[%clk 0:01:42]} 24. Qxa5 {[%clk 0:01:00]}  Rb8 {[%clk 0:01:29]} 25. Rc1 {[%clk 0:00:58]}  Nb4 {[%clk 0:01:28]} 26. a3 {[%clk 0:00:51]}  Nc2 {[%clk 0:01:21]} 27. Qc3 {[%clk 0:00:43]}  b4 {[%clk 0:01:19]} 28. axb4 {[%clk 0:00:42]}  Nxb4 {[%clk 0:01:17]} 29. Qc7 {[%clk 0:00:41]}  Qxc7 {[%clk 0:01:15]} 30. Rxc7 {[%clk 0:00:42]}  Nc2 {[%clk 0:01:15]} 31. Nxf7 {[%clk 0:00:37]}  Nxd4 {[%clk 0:01:15]} 32. Nd6 {[%clk 0:00:34]}  Bg6 {[%clk 0:01:06]} 33. Rc8+ {[%clk 0:00:33]}  Rxc8 {[%clk 0:01:04]} 34. Nxc8 {[%clk 0:00:34]}  Kf7 {[%clk 0:01:04]} 35. Re1 {[%clk 0:00:34]}  Nc2 {[%clk 0:01:00]} 36. Nd6+ {[%clk 0:00:32]}  Kf8 {[%clk 0:00:58]} 37. Rd1 {[%clk 0:00:28]}  Ke7 {[%clk 0:00:58]} 38. Nb5 {[%clk 0:00:27]}  Bf7 {[%clk 0:00:54]} 39. Nd4 {[%clk 0:00:25]}  Nxd4 {[%clk 0:00:51]} 40. Rxd4 {[%clk 0:00:26]}  Kd6 {[%clk 0:00:51]} 41. b4 {[%clk 0:00:26]}  Nd7 {[%clk 0:00:48]} 42. f4 {[%clk 0:00:26]}  Nb6 {[%clk 0:00:46]} 43. Kf2 {[%clk 0:00:26]}  Nc4 {[%clk 0:00:45]} 44. Bf1 {[%clk 0:00:24]}  Nb6 {[%clk 0:00:43]} 45. Ke3 {[%clk 0:00:24]}  Be6 {[%clk 0:00:40]} 46. Rd2 {[%clk 0:00:23]}  Kc6 {[%clk 0:00:37]} 47. Kd4 {[%clk 0:00:23]}  Kd6 {[%clk 0:00:37]} 48. Ra2 {[%clk 0:00:22]}  Bd7 {[%clk 0:00:35]} 49. Ra6 {[%clk 0:00:21]}  Kc6 {[%clk 0:00:34]} 50. b5+ {[%clk 0:00:20]}  Kb7 {[%clk 0:00:34]} 51. Kc5 {[%clk 0:00:20]}  Nc8 {[%clk 0:00:32]} 52. Bg2 {[%clk 0:00:18]}  Ne7 {[%clk 0:00:30]} 53. Rd6 {[%clk 0:00:16]}  Bg4 {[%clk 0:00:29]} 54. Bxd5+ {[%clk 0:00:15]}  Kc7 {[%clk 0:00:29]} 55. b6+ {[%clk 0:00:14]}  Kc8 {[%clk 0:00:28]} 56. b7+ {[%clk 0:00:15]}  Kc7 {[%clk 0:00:28]} 57. Rd8 {[%clk 0:00:15]} 1-0


[Site "https://www.chess.com"]

[Event "Titled Tuesday Blitz January 17 Early 2023"]
[White "Le Ruyet, Leopold"]
[Black "Makhnev, Denis"]
[WhiteFideId "645923"]
[BlackFideId "13707647"]
[WhiteElo "2245"]
[BlackElo "2483"]
[Result "0-1"]
[Round "11"]
[TimeControl "180+2"]
[Date "2023.01.17"]
[WhiteClock "0:00:01"]
[BlackClock "0:00:03"]

1. e4 {[%clk 0:03:00]}  c6 {[%clk 0:02:59]} 2. d4 {[%clk 0:03:00]}  d5 {[%clk 0:03:00]} 3. f3 {[%clk 0:03:01]}  Nf6 {[%clk 0:02:58]} 4. e5 {[%clk 0:02:58]}  Nfd7 {[%clk 0:02:58]} 5. f4 {[%clk 0:02:58]}  c5 {[%clk 0:02:53]} 6. c3 {[%clk 0:02:58]}  Nc6 {[%clk 0:02:52]} 7. Nf3 {[%clk 0:02:58]}  cxd4 {[%clk 0:02:52]} 8. cxd4 {[%clk 0:02:58]}  Nb6 {[%clk 0:02:52]} 9. Nc3 {[%clk 0:02:55]}  Bg4 {[%clk 0:02:51]} 10. Be3 {[%clk 0:02:47]}  e6 {[%clk 0:02:48]} 11. h3 {[%clk 0:02:45]}  Bxf3 {[%clk 0:02:41]} 12. Qxf3 {[%clk 0:02:46]}  Bb4 {[%clk 0:02:41]} 13. Rc1 {[%clk 0:02:06]}  Rc8 {[%clk 0:02:34]} 14. Bd3 {[%clk 0:02:02]}  Na4 {[%clk 0:02:18]} 15. O-O {[%clk 0:01:54]}  Nxb2 {[%clk 0:02:16]} 16. Bb1 {[%clk 0:01:52]}  Nc4 {[%clk 0:02:06]} 17. f5 {[%clk 0:01:34]}  O-O {[%clk 0:01:22]} 18. Ne2 {[%clk 0:01:24]}  Nxe3 {[%clk 0:01:20]} 19. Qxe3 {[%clk 0:01:24]}  Qh4 {[%clk 0:01:06]} 20. Rf4 {[%clk 0:01:19]}  Qh6 {[%clk 0:01:03]} 21. Rcf1 {[%clk 0:01:15]}  exf5 {[%clk 0:00:47]} 22. Bxf5 {[%clk 0:01:10]}  Rcd8 {[%clk 0:00:42]} 23. Qg3 {[%clk 0:01:06]}  g6 {[%clk 0:00:42]} 24. Bb1 {[%clk 0:00:47]}  Bd2 {[%clk 0:00:39]} 25. R4f3 {[%clk 0:00:44]}  Qg5 {[%clk 0:00:32]} 26. Qf2 {[%clk 0:00:43]}  Qe7 {[%clk 0:00:28]} 27. Ng3 {[%clk 0:00:34]}  Bh6 {[%clk 0:00:27]} 28. Nf5 {[%clk 0:00:23]}  gxf5 {[%clk 0:00:26]} 29. Rxf5 {[%clk 0:00:23]}  Bg7 {[%clk 0:00:20]} 30. Rh5 {[%clk 0:00:21]}  f5 {[%clk 0:00:19]} 31. exf6 {[%clk 0:00:10]}  Rxf6 {[%clk 0:00:18]} 32. Bxh7+ {[%clk 0:00:10]}  Kf8 {[%clk 0:00:17]} 33. Rf5 {[%clk 0:00:09]}  Rd6 {[%clk 0:00:15]} 34. Qg3 {[%clk 0:00:04]}  Nxd4 {[%clk 0:00:06]} 35. Rxf6+ {[%clk 0:00:02]}  Rxf6 {[%clk 0:00:06]} 36. Rxf6+ {[%clk 0:00:02]}  Qxf6 {[%clk 0:00:04]} 37. Bd3 {[%clk 0:00:02]}  Qe5 {[%clk 0:00:03]} 38. Qh4 {[%clk 0:00:01]}  Kg8 {[%clk 0:00:03]} 0-1


[Site "https://www.chess.com"]

[Event "Titled Tuesday Blitz January 17 Early 2023"]
[White "Weetik, Vjacheslav"]
[Black "Ibadov, Dashgyn"]
[WhiteFideId "4153472"]
[BlackFideId "24107514"]
[WhiteElo "2423"]
[BlackElo "2391"]
[Result "0-1"]
[Round "11"]
[TimeControl "180+2"]
[Date "2023.01.17"]
[WhiteClock "0:00:16"]
[BlackClock "0:00:54"]

1. e4 {[%clk 0:02:59]}  e5 {[%clk 0:02:57]} 2. Nf3 {[%clk 0:02:59]}  Nc6 {[%clk 0:02:57]} 3. Bb5 {[%clk 0:03:00]}  a6 {[%clk 0:02:57]} 4. Ba4 {[%clk 0:03:00]}  Nf6 {[%clk 0:02:57]} 5. O-O {[%clk 0:03:00]}  Be7 {[%clk 0:02:55]} 6. Re1 {[%clk 0:03:00]}  b5 {[%clk 0:02:55]} 7. Bb3 {[%clk 0:03:01]}  d6 {[%clk 0:02:54]} 8. c3 {[%clk 0:03:00]}  O-O {[%clk 0:02:53]} 9. h3 {[%clk 0:03:00]}  Nb8 {[%clk 0:02:52]} 10. d4 {[%clk 0:03:00]}  Nbd7 {[%clk 0:02:53]} 11. Nbd2 {[%clk 0:02:59]}  Bb7 {[%clk 0:02:53]} 12. a4 {[%clk 0:02:52]}  c5 {[%clk 0:02:48]} 13. Bc2 {[%clk 0:02:40]}  Qc7 {[%clk 0:02:38]} 14. d5 {[%clk 0:02:23]}  c4 {[%clk 0:02:37]} 15. Nf1 {[%clk 0:02:22]}  Nc5 {[%clk 0:02:37]} 16. Ng3 {[%clk 0:02:19]}  Rfb8 {[%clk 0:02:37]} 17. Nh2 {[%clk 0:02:15]}  Bc8 {[%clk 0:02:34]} 18. axb5 {[%clk 0:02:04]}  axb5 {[%clk 0:02:33]} 19. Rxa8 {[%clk 0:02:04]}  Rxa8 {[%clk 0:02:34]} 20. Be3 {[%clk 0:01:53]}  g6 {[%clk 0:02:27]} 21. Qf3 {[%clk 0:01:47]}  Ra2 {[%clk 0:02:22]} 22. Bg5 {[%clk 0:01:30]}  Rxb2 {[%clk 0:02:11]} 23. Bxf6 {[%clk 0:01:30]}  Bxf6 {[%clk 0:02:02]} 24. Qxf6 {[%clk 0:01:30]}  Rxc2 {[%clk 0:02:02]} 25. Ra1 {[%clk 0:01:20]}  Nd3 {[%clk 0:01:51]} 26. Ng4 {[%clk 0:00:50]}  Bxg4 {[%clk 0:01:40]} 27. hxg4 {[%clk 0:00:46]}  Rc1+ {[%clk 0:01:31]} 28. Rxc1 {[%clk 0:00:46]}  Nxc1 {[%clk 0:01:32]} 29. Kh2 {[%clk 0:00:31]}  Nd3 {[%clk 0:01:24]} 30. Nh5 {[%clk 0:00:26]}  gxh5 {[%clk 0:01:15]} 31. gxh5 {[%clk 0:00:27]}  h6 {[%clk 0:00:56]} 32. Qxh6 {[%clk 0:00:26]}  Qe7 {[%clk 0:00:57]} 33. g3 {[%clk 0:00:22]}  Nxf2 {[%clk 0:00:54]} 34. Kg2 {[%clk 0:00:16]}  Nxe4 {[%clk 0:00:54]} 0-1


[Site "https://www.chess.com"]